Workbook

Sheet רישום מרחק
C1: יומן מרחקי נסיעה
C11: להחזר | E11: סה"כ
C12: ק"מ | E12: החזר
C17: 2012-05-01 | E17: 2012-05-10
C19: תקופה | E19: תקופה
C20: התחלה | E20: סוף
C26: 54 | E26: 9,800
C28: החזר | E28: דלק קודם
C29: שקל לק"מ | E29: מד מרחק

Sheet נתוני רישום
B1: יומן מרחקי נסיעה
B5: תאריך | C5: פעילות | D5: קריאת אודומטר 1 | E5: מיקום | F5: קריאת אודומטר 2 | G5: יעד | H5: החזר | I5: ליטרים | J5: עלות | K5: ק"מ | L5: ק"מ לליטר | M5: שקל לק"מ | N5: הערות
B6: 2012-05-01 | C6: נסיעה | D6: 10,123 | E6: רעננה | F6: 10,130 | I6: 15.56 | J6: ₪ 64.11 | K6: =miles -> 7 | L6: =IF(OR(LEN(נתונים[[#This Row],[קריאת אודומטר 2]]),נתונים[[#This Row],[קריאת אודומטר 1]]=""),"",IFERROR(נתונים[[#This Row],[ק"מ]]/נתונים[[#This Row],[ליטרים]],"")) ->  | M6: =IF(נתונים[[#This Row],[ק"מ לליטר]]="","",100*נתונים[[#This Row],[עלות]]/נתונים[[#This Row],[ק"מ]]) -> 
B7: 2012-05-01 | C7: נסיעה | D7: 10,130 | E7: במשרד | F7: 10,200 | G7: רחוב הצפצפות | H7: כן | K7: =miles -> 70 | L7: =IF(OR(LEN(נתונים[[#This Row],[קריאת אודומטר 2]]),נתונים[[#This Row],[קריאת אודומטר 1]]=""),"",IFERROR(נתונים[[#This Row],[ק"מ]]/נתונים[[#This Row],[ליטרים]],"")) ->  | M7: =IF(נתונים[[#This Row],[ק"מ לליטר]]="","",100*נתונים[[#This Row],[עלות]]/נתונים[[#This Row],[ק"מ]]) -> 
B8: 2012-05-01 | C8: נסיעה | D8: 10,200 | E8: טריי מחקר | F8: 10,285 | G8: במשרד | H8: כן | K8: =miles -> 85 | L8: =IF(OR(LEN(נתונים[[#This Row],[קריאת אודומטר 2]]),נתונים[[#This Row],[קריאת אודומטר 1]]=""),"",IFERROR(נתונים[[#This Row],[ק"מ]]/נתונים[[#This Row],[ליטרים]],"")) ->  | M8: =IF(נתונים[[#This Row],[ק"מ לליטר]]="","",100*נתונים[[#This Row],[עלות]]/נתונים[[#This Row],[ק"מ]]) -> 
B9: 2012-05-02 | C9: נסיעה | D9: 10,285 | E9: במשרד | F9: 10,450 | G9: יקב קוהו | H9: כן | K9: =miles -> 165 | L9: =IF(OR(LEN(נתונים[[#This Row],[קריאת אודומטר 2]]),נתונים[[#This Row],[קריאת אודומטר 1]]=""),"",IFERROR(נתונים[[#This Row],[ק"מ]]/נתונים[[#This Row],[ליטרים]],"")) ->  | M9: =IF(נתונים[[#This Row],[ק"מ לליטר]]="","",100*נתונים[[#This Row],[עלות]]/נתונים[[#This Row],[ק"מ]]) -> 
B10: 2012-05-02 | C10: דלק | D10: 10,450 | E10: דלק | I10: 11.20 | J10: ₪ 55.42 | K10: =miles -> 650 | L10: =IF(OR(LEN(נתונים[[#This Row],[קריאת אודומטר 2]]),נתונים[[#This Row],[קריאת אודומטר 1]]=""),"",IFERROR(נתונים[[#This Row],[ק"מ]]/נתונים[[#This Row],[ליטרים]],"")) -> 58.0 | M10: =IF(נתונים[[#This Row],[ק"מ לליטר]]="","",100*נתונים[[#This Row],[עלות]]/נתונים[[#This Row],[ק"מ]]) -> 8.5
B11: 2012-05-02 | C11: נסיעה | D11: 10,500 | E11: יקב קוהו | F11: 10,518 | G11: במשרד | H11: כן | K11: =miles -> 18 | L11: =IF(OR(LEN(נתונים[[#This Row],[קריאת אודומטר 2]]),נתונים[[#This Row],[קריאת אודומטר 1]]=""),"",IFERROR(נתונים[[#This Row],[ק"מ]]/נתונים[[#This Row],[ליטרים]],"")) ->  | M11: =IF(נתונים[[#This Row],[ק"מ לליטר]]="","",100*נתונים[[#This Row],[עלות]]/נתונים[[#This Row],[ק"מ]]) -> 
B12: 2012-05-03 | C12: נסיעה | D12: 10,518 | E12: במשרד | F12: 10,745 | G12: במשרד | H12: כן | K12: =miles -> 227 | L12: =IF(OR(LEN(נתונים[[#This Row],[קריאת אודומטר 2]]),נתונים[[#This Row],[קריאת אודומטר 1]]=""),"",IFERROR(נתונים[[#This Row],[ק"מ]]/נתונים[[#This Row],[ליטרים]],"")) ->  | M12: =IF(נתונים[[#This Row],[ק"מ לליטר]]="","",100*נתונים[[#This Row],[עלות]]/נתונים[[#This Row],[ק"מ]]) -> 
B13: 2012-05-04 | C13: דלק | D13: 10,745 | E13: רעננה | I13: 16.60 | J13: ₪ 69.24 | K13: =miles -> 295 | L13: =IF(OR(LEN(נתונים[[#This Row],[קריאת אודומטר 2]]),נתונים[[#This Row],[קריאת אודומטר 1]]=""),"",IFERROR(נתונים[[#This Row],[ק"מ]]/נתונים[[#This Row],[ליטרים]],"")) -> 17.8 | M13: =IF(נתונים[[#This Row],[ק"מ לליטר]]="","",100*נתונים[[#This Row],[עלות]]/נתונים[[#This Row],[ק"מ]]) -> 23.5
B14: 2012-05-04 | C14: נסיעה | D14: 10,745 | E14: במשרד | F14: 10,800 | G14: תל-אביב | H14: כן | K14: =miles -> 55 | L14: =IF(OR(LEN(נתונים[[#This Row],[קריאת אודומטר 2]]),נתונים[[#This Row],[קריאת אודומטר 1]]=""),"",IFERROR(נתונים[[#This Row],[ק"מ]]/נתונים[[#This Row],[ליטרים]],"")) ->  | M14: =IF(נתונים[[#This Row],[ק"מ לליטר]]="","",100*נתונים[[#This Row],[עלות]]/נתונים[[#This Row],[ק"מ]]) -> 
B15: 2012-05-04 | C15: נסיעה | D15: 10,800 | E15: תל-אביב | F15: 10,875 | G15: במשרד | H15: כן | K15: =miles -> 75 | L15: =IF(OR(LEN(נתונים[[#This Row],[קריאת אודומטר 2]]),נתונים[[#This Row],[קריאת אודומטר 1]]=""),"",IFERROR(נתונים[[#This Row],[ק"מ]]/נתונים[[#This Row],[ליטרים]],"")) ->  | M15: =IF(נתונים[[#This Row],[ק"מ לליטר]]="","",100*נתונים[[#This Row],[עלות]]/נתונים[[#This Row],[ק"מ]]) -> 
B16: 2012-05-07 | C16: נסיעה | D16: 10,875 | E16: במשרד | F16: 10,921 | G16: רחוב הצפצפות | H16: כן | K16: =miles -> 46 | L16: =IF(OR(LEN(נתונים[[#This Row],[קריאת אודומטר 2]]),נתונים[[#This Row],[קריאת אודומטר 1]]=""),"",IFERROR(נתונים[[#This Row],[ק"מ]]/נתונים[[#This Row],[ליטרים]],"")) ->  | M16: =IF(נתונים[[#This Row],[ק"מ לליטר]]="","",100*נתונים[[#This Row],[עלות]]/נתונים[[#This Row],[ק"מ]]) -> 
B17: 2012-05-07 | C17: נסיעה | D17: 10,921 | E17: טריי מחקר | F17: 10,969 | G17: במשרד | H17: כן | K17: =miles -> 48 | L17: =IF(OR(LEN(נתונים[[#This Row],[קריאת אודומטר 2]]),נתונים[[#This Row],[קריאת אודומטר 1]]=""),"",IFERROR(נתונים[[#This Row],[ק"מ]]/נתונים[[#This Row],[ליטרים]],"")) ->  | M17: =IF(נתונים[[#This Row],[ק"מ לליטר]]="","",100*נתונים[[#This Row],[עלות]]/נתונים[[#This Row],[ק"מ]]) -> 
B18: 2012-05-09 | C18: נסיעה | D18: 10,969 | E18: במשרד | F18: 11,000 | G18: הרצליה | H18: כן | K18: =miles -> 31 | L18: =IF(OR(LEN(נתונים[[#This Row],[קריאת אודומטר 2]]),נתונים[[#This Row],[קריאת אודומטר 1]]=""),"",IFERROR(נתונים[[#This Row],[ק"מ]]/נתונים[[#This Row],[ליטרים]],"")) ->  | M18: =IF(נתונים[[#This Row],[ק"מ לליטר]]="","",100*נתונים[[#This Row],[עלות]]/נתונים[[#This Row],[ק"מ]]) -> 
B19: 2012-05-09 | C19: נסיעה | D19: 11,000 | E19: הרצליה | F19: 11,100 | G19: בית | H19: לא | K19: =miles -> 100 | L19: =IF(OR(LEN(נתונים[[#This Row],[קריאת אודומטר 2]]),נתונים[[#This Row],[קריאת אודומטר 1]]=""),"",IFERROR(נתונים[[#This Row],[ק"מ]]/נתונים[[#This Row],[ליטרים]],"")) ->  | M19: =IF(נתונים[[#This Row],[ק"מ לליטר]]="","",100*נתונים[[#This Row],[עלות]]/נתונים[[#This Row],[ק"מ]]) -> 

Sheet חישוב (hidden)
A1: *** גיליון זה יישאר נסתר ***
I6: =OFFSET(I9,,secondAxis="ק''מלליטר") -> ק"מ לליטר
M7: 2
H8: נסיעה | I8: דלק | J8: דלק | L8: ציר שני: | M8: =REPT("ק''מ לליטר",M7=1)&REPT("עלות דלק",M7=2) -> עלות דלק
H9: מרחק נסיעה בק"מ | I9: ק"מ לליטר | J9: שקל לק"מ
C10: החזר בק"מ: | D10: =SUMIFS(נתונים[ק"מ],נתונים[החזר],"כן",נתונים[תאריך],">="&periodStart,נתונים[תאריך],"<="&periodEnd) -> 820 | F10: 1 | G10: =periodStart -> 2012-05-01 | H10: =SUMIFS(נתונים[ק"מ],נתונים[תאריך],G10,נתונים[פעילות],$H$8) -> 162 | I10: =IFERROR(AVERAGEIFS(נתונים[ק"מ לליטר],נתונים[תאריך],G10,נתונים[פעילות],$I$8),NA()) ->  | J10: =IFERROR(AVERAGEIFS(נתונים[שקל לק"מ],נתונים[תאריך],G10,נתונים[פעילות],$J$8),NA()) -> 
C11: סה"כ החזר | D11: =D10*ReimbursementPerMile/100 -> ₪ 442.80 | F11: 2 | G11: =G10+1 -> 2012-05-02 | H11: =SUMIFS(נתונים[ק"מ],נתונים[תאריך],G11,נתונים[פעילות],$H$8) -> 183 | I11: =IFERROR(AVERAGEIFS(נתונים[ק"מ לליטר],נתונים[תאריך],G11,נתונים[פעילות],$I$8),NA()) -> 58.0 | J11: =IFERROR(AVERAGEIFS(נתונים[שקל לק"מ],נתונים[תאריך],G11,נתונים[פעילות],$J$8),NA()) -> 8.5
F12: 3 | G12: 2012-05-03 | H12: =SUMIFS(נתונים[ק"מ],נתונים[תאריך],G12,נתונים[פעילות],$H$8) -> 227 | I12: =IFERROR(AVERAGEIFS(נתונים[ק"מ לליטר],נתונים[תאריך],G12,נתונים[פעילות],$I$8),NA()) ->  | J12: =IFERROR(AVERAGEIFS(נתונים[שקל לק"מ],נתונים[תאריך],G12,נתונים[פעילות],$J$8),NA()) -> 
F13: 4 | G13: 2012-05-04 | H13: =SUMIFS(נתונים[ק"מ],נתונים[תאריך],G13,נתונים[פעילות],$H$8) -> 130 | I13: =IFERROR(AVERAGEIFS(נתונים[ק"מ לליטר],נתונים[תאריך],G13,נתונים[פעילות],$I$8),NA()) -> 17.8 | J13: =IFERROR(AVERAGEIFS(נתונים[שקל לק"מ],נתונים[תאריך],G13,נתונים[פעילות],$J$8),NA()) -> 23.5
F14: 5 | G14: 2012-05-05 | H14: =SUMIFS(נתונים[ק"מ],נתונים[תאריך],G14,נתונים[פעילות],$H$8) -> 0 | I14: =IFERROR(AVERAGEIFS(נתונים[ק"מ לליטר],נתונים[תאריך],G14,נתונים[פעילות],$I$8),NA()) ->  | J14: =IFERROR(AVERAGEIFS(נתונים[שקל לק"מ],נתונים[תאריך],G14,נתונים[פעילות],$J$8),NA()) -> 
F15: 6 | G15: 2012-05-06 | H15: =SUMIFS(נתונים[ק"מ],נתונים[תאריך],G15,נתונים[פעילות],$H$8) -> 0 | I15: =IFERROR(AVERAGEIFS(נתונים[ק"מ לליטר],נתונים[תאריך],G15,נתונים[פעילות],$I$8),NA()) ->  | J15: =IFERROR(AVERAGEIFS(נתונים[שקל לק"מ],נתונים[תאריך],G15,נתונים[פעילות],$J$8),NA()) -> 
F16: 7 | G16: 2012-05-07 | H16: =SUMIFS(נתונים[ק"מ],נתונים[תאריך],G16,נתונים[פעילות],$H$8) -> 94 | I16: =IFERROR(AVERAGEIFS(נתונים[ק"מ לליטר],נתונים[תאריך],G16,נתונים[פעילות],$I$8),NA()) ->  | J16: =IFERROR(AVERAGEIFS(נתונים[שקל לק"מ],נתונים[תאריך],G16,נתונים[פעילות],$J$8),NA()) -> 
F17: 8 | G17: 2012-05-08 | H17: =SUMIFS(נתונים[ק"מ],נתונים[תאריך],G17,נתונים[פעילות],$H$8) -> 0 | I17: =IFERROR(AVERAGEIFS(נתונים[ק"מ לליטר],נתונים[תאריך],G17,נתונים[פעילות],$I$8),NA()) ->  | J17: =IFERROR(AVERAGEIFS(נתונים[שקל לק"מ],נתונים[תאריך],G17,נתונים[פעילות],$J$8),NA()) -> 
F18: 9 | G18: 2012-05-09 | H18: =SUMIFS(נתונים[ק"מ],נתונים[תאריך],G18,נתונים[פעילות],$H$8) -> 131 | I18: =IFERROR(AVERAGEIFS(נתונים[ק"מ לליטר],נתונים[תאריך],G18,נתונים[פעילות],$I$8),NA()) ->  | J18: =IFERROR(AVERAGEIFS(נתונים[שקל לק"מ],נתונים[תאריך],G18,נתונים[פעילות],$J$8),NA()) -> 
F19: 10 | G19: 2012-05-10 | H19: =SUMIFS(נתונים[ק"מ],נתונים[תאריך],G19,נתונים[פעילות],$H$8) -> 0 | I19: =IFERROR(AVERAGEIFS(נתונים[ק"מ לליטר],נתונים[תאריך],G19,נתונים[פעילות],$I$8),NA()) ->  | J19: =IFERROR(AVERAGEIFS(נתונים[שקל לק"מ],נתונים[תאריך],G19,נתונים[פעילות],$J$8),NA()) -> 
F20: 11 | G20: 2012-05-11 | H20: =SUMIFS(נתונים[ק"מ],נתונים[תאריך],G20,נתונים[פעילות],$H$8) -> 0 | I20: =IFERROR(AVERAGEIFS(נתונים[ק"מ לליטר],נתונים[תאריך],G20,נתונים[פעילות],$I$8),NA()) ->  | J20: =IFERROR(AVERAGEIFS(נתונים[שקל לק"מ],נתונים[תאריך],G20,נתונים[פעילות],$J$8),NA()) -> 
F21: 12 | G21: 2012-05-12 | H21: =SUMIFS(נתונים[ק"מ],נתונים[תאריך],G21,נתונים[פעילות],$H$8) -> 0 | I21: =IFERROR(AVERAGEIFS(נתונים[ק"מ לליטר],נתונים[תאריך],G21,נתונים[פעילות],$I$8),NA()) ->  | J21: =IFERROR(AVERAGEIFS(נתונים[שקל לק"מ],נתונים[תאריך],G21,נתונים[פעילות],$J$8),NA()) -> 
F22: 13 | G22: 2012-05-13 | H22: =SUMIFS(נתונים[ק"מ],נתונים[תאריך],G22,נתונים[פעילות],$H$8) -> 0 | I22: =IFERROR(AVERAGEIFS(נתונים[ק"מ לליטר],נתונים[תאריך],G22,נתונים[פעילות],$I$8),NA()) ->  | J22: =IFERROR(AVERAGEIFS(נתונים[שקל לק"מ],נתונים[תאריך],G22,נתונים[פעילות],$J$8),NA()) -> 
F23: 14 | G23: 2012-05-14 | H23: =SUMIFS(נתונים[ק"מ],נתונים[תאריך],G23,נתונים[פעילות],$H$8) -> 0 | I23: =IFERROR(AVERAGEIFS(נתונים[ק"מ לליטר],נתונים[תאריך],G23,נתונים[פעילות],$I$8),NA()) ->  | J23: =IFERROR(AVERAGEIFS(נתונים[שקל לק"מ],נתונים[תאריך],G23,נתונים[פעילות],$J$8),NA()) -> 
F24: 15 | G24: 2012-05-15 | H24: =SUMIFS(נתונים[ק"מ],נתונים[תאריך],G24,נתונים[פעילות],$H$8) -> 0 | I24: =IFERROR(AVERAGEIFS(נתונים[ק"מ לליטר],נתונים[תאריך],G24,נתונים[פעילות],$I$8),NA()) ->  | J24: =IFERROR(AVERAGEIFS(נתונים[שקל לק"מ],נתונים[תאריך],G24,נתונים[פעילות],$J$8),NA()) -> 
F25: 16 | G25: 2012-05-16 | H25: =SUMIFS(נתונים[ק"מ],נתונים[תאריך],G25,נתונים[פעילות],$H$8) -> 0 | I25: =IFERROR(AVERAGEIFS(נתונים[ק"מ לליטר],נתונים[תאריך],G25,נתונים[פעילות],$I$8),NA()) ->  | J25: =IFERROR(AVERAGEIFS(נתונים[שקל לק"מ],נתונים[תאריך],G25,נתונים[פעילות],$J$8),NA()) -> 
F26: 17 | G26: 2012-05-17 | H26: =SUMIFS(נתונים[ק"מ],נתונים[תאריך],G26,נתונים[פעילות],$H$8) -> 0 | I26: =IFERROR(AVERAGEIFS(נתונים[ק"מ לליטר],נתונים[תאריך],G26,נתונים[פעילות],$I$8),NA()) ->  | J26: =IFERROR(AVERAGEIFS(נתונים[שקל לק"מ],נתונים[תאריך],G26,נתונים[פעילות],$J$8),NA()) -> 
F27: 18 | G27: 2012-05-18 | H27: =SUMIFS(נתונים[ק"מ],נתונים[תאריך],G27,נתונים[פעילות],$H$8) -> 0 | I27: =IFERROR(AVERAGEIFS(נתונים[ק"מ לליטר],נתונים[תאריך],G27,נתונים[פעילות],$I$8),NA()) ->  | J27: =IFERROR(AVERAGEIFS(נתונים[שקל לק"מ],נתונים[תאריך],G27,נתונים[פעילות],$J$8),NA()) -> 
F28: 19 | G28: 2012-05-19 | H28: =SUMIFS(נתונים[ק"מ],נתונים[תאריך],G28,נתונים[פעילות],$H$8) -> 0 | I28: =IFERROR(AVERAGEIFS(נתונים[ק"מ לליטר],נתונים[תאריך],G28,נתונים[פעילות],$I$8),NA()) ->  | J28: =IFERROR(AVERAGEIFS(נתונים[שקל לק"מ],נתונים[תאריך],G28,נתונים[פעילות],$J$8),NA()) -> 
F29: 20 | G29: 2012-05-20 | H29: =SUMIFS(נתונים[ק"מ],נתונים[תאריך],G29,נתונים[פעילות],$H$8) -> 0 | I29: =IFERROR(AVERAGEIFS(נתונים[ק"מ לליטר],נתונים[תאריך],G29,נתונים[פעילות],$I$8),NA()) ->  | J29: =IFERROR(AVERAGEIFS(נתונים[שקל לק"מ],נתונים[תאריך],G29,נתונים[פעילות],$J$8),NA()) -> 
F30: 21 | G30: 2012-05-21 | H30: =SUMIFS(נתונים[ק"מ],נתונים[תאריך],G30,נתונים[פעילות],$H$8) -> 0 | I30: =IFERROR(AVERAGEIFS(נתונים[ק"מ לליטר],נתונים[תאריך],G30,נתונים[פעילות],$I$8),NA()) ->  | J30: =IFERROR(AVERAGEIFS(נתונים[שקל לק"מ],נתונים[תאריך],G30,נתונים[פעילות],$J$8),NA()) -> 
F31: 22 | G31: 2012-05-22 | H31: =SUMIFS(נתונים[ק"מ],נתונים[תאריך],G31,נתונים[פעילות],$H$8) -> 0 | I31: =IFERROR(AVERAGEIFS(נתונים[ק"מ לליטר],נתונים[תאריך],G31,נתונים[פעילות],$I$8),NA()) ->  | J31: =IFERROR(AVERAGEIFS(נתונים[שקל לק"מ],נתונים[תאריך],G31,נתונים[פעילות],$J$8),NA()) -> 
F32: 23 | G32: 2012-05-23 | H32: =SUMIFS(נתונים[ק"מ],נתונים[תאריך],G32,נתונים[פעילות],$H$8) -> 0 | I32: =IFERROR(AVERAGEIFS(נתונים[ק"מ לליטר],נתונים[תאריך],G32,נתונים[פעילות],$I$8),NA()) ->  | J32: =IFERROR(AVERAGEIFS(נתונים[שקל לק"מ],נתונים[תאריך],G32,נתונים[פעילות],$J$8),NA()) -> 
F33: 24 | G33: 2012-05-24 | H33: =SUMIFS(נתונים[ק"מ],נתונים[תאריך],G33,נתונים[פעילות],$H$8) -> 0 | I33: =IFERROR(AVERAGEIFS(נתונים[ק"מ לליטר],נתונים[תאריך],G33,נתונים[פעילות],$I$8),NA()) ->  | J33: =IFERROR(AVERAGEIFS(נתונים[שקל לק"מ],נתונים[תאריך],G33,נתונים[פעילות],$J$8),NA()) -> 
F34: 25 | G34: 2012-05-25 | H34: =SUMIFS(נתונים[ק"מ],נתונים[תאריך],G34,נתונים[פעילות],$H$8) -> 0 | I34: =IFERROR(AVERAGEIFS(נתונים[ק"מ לליטר],נתונים[תאריך],G34,נתונים[פעילות],$I$8),NA()) ->  | J34: =IFERROR(AVERAGEIFS(נתונים[שקל לק"מ],נתונים[תאריך],G34,נתונים[פעילות],$J$8),NA()) -> 
F35: 26 | G35: 2012-05-26 | H35: =SUMIFS(נתונים[ק"מ],נתונים[תאריך],G35,נתונים[פעילות],$H$8) -> 0 | I35: =IFERROR(AVERAGEIFS(נתונים[ק"מ לליטר],נתונים[תאריך],G35,נתונים[פעילות],$I$8),NA()) ->  | J35: =IFERROR(AVERAGEIFS(נתונים[שקל לק"מ],נתונים[תאריך],G35,נתונים[פעילות],$J$8),NA()) -> 
F36: 27 | G36: 2012-05-27 | H36: =SUMIFS(נתונים[ק"מ],נתונים[תאריך],G36,נתונים[פעילות],$H$8) -> 0 | I36: =IFERROR(AVERAGEIFS(נתונים[ק"מ לליטר],נתונים[תאריך],G36,נתונים[פעילות],$I$8),NA()) ->  | J36: =IFERROR(AVERAGEIFS(נתונים[שקל לק"מ],נתונים[תאריך],G36,נתונים[פעילות],$J$8),NA()) -> 
F37: 28 | G37: 2012-05-28 | H37: =SUMIFS(נתונים[ק"מ],נתונים[תאריך],G37,נתונים[פעילות],$H$8) -> 0 | I37: =IFERROR(AVERAGEIFS(נתונים[ק"מ לליטר],נתונים[תאריך],G37,נתונים[פעילות],$I$8),NA()) ->  | J37: =IFERROR(AVERAGEIFS(נתונים[שקל לק"מ],נתונים[תאריך],G37,נתונים[פעילות],$J$8),NA()) -> 
F38: 29 | G38: 2012-05-29 | H38: =SUMIFS(נתונים[ק"מ],נתונים[תאריך],G38,נתונים[פעילות],$H$8) -> 0 | I38: =IFERROR(AVERAGEIFS(נתונים[ק"מ לליטר],נתונים[תאריך],G38,נתונים[פעילות],$I$8),NA()) ->  | J38: =IFERROR(AVERAGEIFS(נתונים[שקל לק"מ],נתונים[תאריך],G38,נתונים[פעילות],$J$8),NA()) -> 
F39: 30 | G39: 2012-05-30 | H39: =SUMIFS(נתונים[ק"מ],נתונים[תאריך],G39,נתונים[פעילות],$H$8) -> 0 | I39: =IFERROR(AVERAGEIFS(נתונים[ק"מ לליטר],נתונים[תאריך],G39,נתונים[פעילות],$I$8),NA()) ->  | J39: =IFERROR(AVERAGEIFS(נתונים[שקל לק"מ],נתונים[תאריך],G39,נתונים[פעילות],$J$8),NA()) -> 
F40: 31 | G40: 2012-05-31 | H40: =SUMIFS(נתונים[ק"מ],נתונים[תאריך],G40,נתונים[פעילות],$H$8) -> 0 | I40: =IFERROR(AVERAGEIFS(נתונים[ק"מ לליטר],נתונים[תאריך],G40,נתונים[פעילות],$I$8),NA()) ->  | J40: =IFERROR(AVERAGEIFS(נתונים[שקל לק"מ],נתונים[תאריך],G40,נתונים[פעילות],$J$8),NA()) -> 
F41: 32 | G41: 2012-06-01 | H41: =SUMIFS(נתונים[ק"מ],נתונים[תאריך],G41,נתונים[פעילות],$H$8) -> 0 | I41: =IFERROR(AVERAGEIFS(נתונים[ק"מ לליטר],נתונים[תאריך],G41,נתונים[פעילות],$I$8),NA()) ->  | J41: =IFERROR(AVERAGEIFS(נתונים[שקל לק"מ],נתונים[תאריך],G41,נתונים[פעילות],$J$8),NA()) -> 
F42: 33 | G42: 2012-06-02 | H42: =SUMIFS(נתונים[ק"מ],נתונים[תאריך],G42,נתונים[פעילות],$H$8) -> 0 | I42: =IFERROR(AVERAGEIFS(נתונים[ק"מ לליטר],נתונים[תאריך],G42,נתונים[פעילות],$I$8),NA()) ->  | J42: =IFERROR(AVERAGEIFS(נתונים[שקל לק"מ],נתונים[תאריך],G42,נתונים[פעילות],$J$8),NA()) -> 
F43: 34 | G43: =G42+1 -> 2012-06-03 | H43: =SUMIFS(נתונים[ק"מ],נתונים[תאריך],G43,נתונים[פעילות],$H$8) -> 0 | I43: =IFERROR(AVERAGEIFS(נתונים[ק"מ לליטר],נתונים[תאריך],G43,נתונים[פעילות],$I$8),NA()) ->  | J43: =IFERROR(AVERAGEIFS(נתונים[שקל לק"מ],נתונים[תאריך],G43,נתונים[פעילות],$J$8),NA()) -> 
F44: 35 | G44: 2012-06-04 | H44: =SUMIFS(נתונים[ק"מ],נתונים[תאריך],G44,נתונים[פעילות],$H$8) -> 0 | I44: =IFERROR(AVERAGEIFS(נתונים[ק"מ לליטר],נתונים[תאריך],G44,נתונים[פעילות],$I$8),NA()) ->  | J44: =IFERROR(AVERAGEIFS(נתונים[שקל לק"מ],נתונים[תאריך],G44,נתונים[פעילות],$J$8),NA()) -> 
F45: 36 | G45: 2012-06-05 | H45: =SUMIFS(נתונים[ק"מ],נתונים[תאריך],G45,נתונים[פעילות],$H$8) -> 0 | I45: =IFERROR(AVERAGEIFS(נתונים[ק"מ לליטר],נתונים[תאריך],G45,נתונים[פעילות],$I$8),NA()) ->  | J45: =IFERROR(AVERAGEIFS(נתונים[שקל לק"מ],נתונים[תאריך],G45,נתונים[פעילות],$J$8),NA()) -> 
F46: 37 | G46: 2012-06-06 | H46: =SUMIFS(נתונים[ק"מ],נתונים[תאריך],G46,נתונים[פעילות],$H$8) -> 0 | I46: =IFERROR(AVERAGEIFS(נתונים[ק"מ לליטר],נתונים[תאריך],G46,נתונים[פעילות],$I$8),NA()) ->  | J46: =IFERROR(AVERAGEIFS(נתונים[שקל לק"מ],נתונים[תאריך],G46,נתונים[פעילות],$J$8),NA()) -> 
F47: 38 | G47: 2012-06-07 | H47: =SUMIFS(נתונים[ק"מ],נתונים[תאריך],G47,נתונים[פעילות],$H$8) -> 0 | I47: =IFERROR(AVERAGEIFS(נתונים[ק"מ לליטר],נתונים[תאריך],G47,נתונים[פעילות],$I$8),NA()) ->  | J47: =IFERROR(AVERAGEIFS(נתונים[שקל לק"מ],נתונים[תאריך],G47,נתונים[פעילות],$J$8),NA()) -> 
F48: 39 | G48: 2012-06-08 | H48: =SUMIFS(נתונים[ק"מ],נתונים[תאריך],G48,נתונים[פעילות],$H$8) -> 0 | I48: =IFERROR(AVERAGEIFS(נתונים[ק"מ לליטר],נתונים[תאריך],G48,נתונים[פעילות],$I$8),NA()) ->  | J48: =IFERROR(AVERAGEIFS(נתונים[שקל לק"מ],נתונים[תאריך],G48,נתונים[פעילות],$J$8),NA()) -> 
F49: 40 | G49: 2012-06-09 | H49: =SUMIFS(נתונים[ק"מ],נתונים[תאריך],G49,נתונים[פעילות],$H$8) -> 0 | I49: =IFERROR(AVERAGEIFS(נתונים[ק"מ לליטר],נתונים[תאריך],G49,נתונים[פעילות],$I$8),NA()) ->  | J49: =IFERROR(AVERAGEIFS(נתונים[שקל לק"מ],נתונים[תאריך],G49,נתונים[פעילות],$J$8),NA()) -> 
F50: 41 | G50: 2012-06-10 | H50: =SUMIFS(נתונים[ק"מ],נתונים[תאריך],G50,נתונים[פעילות],$H$8) -> 0 | I50: =IFERROR(AVERAGEIFS(נתונים[ק"מ לליטר],נתונים[תאריך],G50,נתונים[פעילות],$I$8),NA()) ->  | J50: =IFERROR(AVERAGEIFS(נתונים[שקל לק"מ],נתונים[תאריך],G50,נתונים[פעילות],$J$8),NA()) -> 
F51: 42 | G51: 2012-06-11 | H51: =SUMIFS(נתונים[ק"מ],נתונים[תאריך],G51,נתונים[פעילות],$H$8) -> 0 | I51: =IFERROR(AVERAGEIFS(נתונים[ק"מ לליטר],נתונים[תאריך],G51,נתונים[פעילות],$I$8),NA()) ->  | J51: =IFERROR(AVERAGEIFS(נתונים[שקל לק"מ],נתונים[תאריך],G51,נתונים[פעילות],$J$8),NA()) -> 
F52: 43 | G52: 2012-06-12 | H52: =SUMIFS(נתונים[ק"מ],נתונים[תאריך],G52,נתונים[פעילות],$H$8) -> 0 | I52: =IFERROR(AVERAGEIFS(נתונים[ק"מ לליטר],נתונים[תאריך],G52,נתונים[פעילות],$I$8),NA()) ->  | J52: =IFERROR(AVERAGEIFS(נתונים[שקל לק"מ],נתונים[תאריך],G52,נתונים[פעילות],$J$8),NA()) -> 
F53: 44 | G53: 2012-06-13 | H53: =SUMIFS(נתונים[ק"מ],נתונים[תאריך],G53,נתונים[פעילות],$H$8) -> 0 | I53: =IFERROR(AVERAGEIFS(נתונים[ק"מ לליטר],נתונים[תאריך],G53,נתונים[פעילות],$I$8),NA()) ->  | J53: =IFERROR(AVERAGEIFS(נתונים[שקל לק"מ],נתונים[תאריך],G53,נתונים[פעילות],$J$8),NA()) -> 
F54: 45 | G54: 2012-06-14 | H54: =SUMIFS(נתונים[ק"מ],נתונים[תאריך],G54,נתונים[פעילות],$H$8) -> 0 | I54: =IFERROR(AVERAGEIFS(נתונים[ק"מ לליטר],נתונים[תאריך],G54,נתונים[פעילות],$I$8),NA()) ->  | J54: =IFERROR(AVERAGEIFS(נתונים[שקל לק"מ],נתונים[תאריך],G54,נתונים[פעילות],$J$8),NA()) -> 
F55: 46 | G55: 2012-06-15 | H55: =SUMIFS(נתונים[ק"מ],נתונים[תאריך],G55,נתונים[פעילות],$H$8) -> 0 | I55: =IFERROR(AVERAGEIFS(נתונים[ק"מ לליטר],נתונים[תאריך],G55,נתונים[פעילות],$I$8),NA()) ->  | J55: =IFERROR(AVERAGEIFS(נתונים[שקל לק"מ],נתונים[תאריך],G55,נתונים[פעילות],$J$8),NA()) -> 
F56: 47 | G56: 2012-06-16 | H56: =SUMIFS(נתונים[ק"מ],נתונים[תאריך],G56,נתונים[פעילות],$H$8) -> 0 | I56: =IFERROR(AVERAGEIFS(נתונים[ק"מ לליטר],נתונים[תאריך],G56,נתונים[פעילות],$I$8),NA()) ->  | J56: =IFERROR(AVERAGEIFS(נתונים[שקל לק"מ],נתונים[תאריך],G56,נתונים[פעילות],$J$8),NA()) -> 
F57: 48 | G57: 2012-06-17 | H57: =SUMIFS(נתונים[ק"מ],נתונים[תאריך],G57,נתונים[פעילות],$H$8) -> 0 | I57: =IFERROR(AVERAGEIFS(נתונים[ק"מ לליטר],נתונים[תאריך],G57,נתונים[פעילות],$I$8),NA()) ->  | J57: =IFERROR(AVERAGEIFS(נתונים[שקל לק"מ],נתונים[תאריך],G57,נתונים[פעילות],$J$8),NA()) -> 
F58: 49 | G58: 2012-06-18 | H58: =SUMIFS(נתונים[ק"מ],נתונים[תאריך],G58,נתונים[פעילות],$H$8) -> 0 | I58: =IFERROR(AVERAGEIFS(נתונים[ק"מ לליטר],נתונים[תאריך],G58,נתונים[פעילות],$I$8),NA()) ->  | J58: =IFERROR(AVERAGEIFS(נתונים[שקל לק"מ],נתונים[תאריך],G58,נתונים[פעילות],$J$8),NA()) -> 
F59: 50 | G59: 2012-06-19 | H59: =SUMIFS(נתונים[ק"מ],נתונים[תאריך],G59,נתונים[פעילות],$H$8) -> 0 | I59: =IFERROR(AVERAGEIFS(נתונים[ק"מ לליטר],נתונים[תאריך],G59,נתונים[פעילות],$I$8),NA()) ->  | J59: =IFERROR(AVERAGEIFS(נתונים[שקל לק"מ],נתונים[תאריך],G59,נתונים[פעילות],$J$8),NA()) -> 
F60: 51 | G60: 2012-06-20 | H60: =SUMIFS(נתונים[ק"מ],נתונים[תאריך],G60,נתונים[פעילות],$H$8) -> 0 | I60: =IFERROR(AVERAGEIFS(נתונים[ק"מ לליטר],נתונים[תאריך],G60,נתונים[פעילות],$I$8),NA()) ->  | J60: =IFERROR(AVERAGEIFS(נתונים[שקל לק"מ],נתונים[תאריך],G60,נתונים[פעילות],$J$8),NA()) -> 
F61: 52 | G61: 2012-06-21 | H61: =SUMIFS(נתונים[ק"מ],נתונים[תאריך],G61,נתונים[פעילות],$H$8) -> 0 | I61: =IFERROR(AVERAGEIFS(נתונים[ק"מ לליטר],נתונים[תאריך],G61,נתונים[פעילות],$I$8),NA()) ->  | J61: =IFERROR(AVERAGEIFS(נתונים[שקל לק"מ],נתונים[תאריך],G61,נתונים[פעילות],$J$8),NA()) -> 
F62: 53 | G62: 2012-06-22 | H62: =SUMIFS(נתונים[ק"מ],נתונים[תאריך],G62,נתונים[פעילות],$H$8) -> 0 | I62: =IFERROR(AVERAGEIFS(נתונים[ק"מ לליטר],נתונים[תאריך],G62,נתונים[פעילות],$I$8),NA()) ->  | J62: =IFERROR(AVERAGEIFS(נתונים[שקל לק"מ],נתונים[תאריך],G62,נתונים[פעילות],$J$8),NA()) -> 
F63: 54 | G63: 2012-06-23 | H63: =SUMIFS(נתונים[ק"מ],נתונים[תאריך],G63,נתונים[פעילות],$H$8) -> 0 | I63: =IFERROR(AVERAGEIFS(נתונים[ק"מ לליטר],נתונים[תאריך],G63,נתונים[פעילות],$I$8),NA()) ->  | J63: =IFERROR(AVERAGEIFS(נתונים[שקל לק"מ],נתונים[תאריך],G63,נתונים[פעילות],$J$8),NA()) -> 
F64: 55 | G64: 2012-06-24 | H64: =SUMIFS(נתונים[ק"מ],נתונים[תאריך],G64,נתונים[פעילות],$H$8) -> 0 | I64: =IFERROR(AVERAGEIFS(נתונים[ק"מ לליטר],נתונים[תאריך],G64,נתונים[פעילות],$I$8),NA()) ->  | J64: =IFERROR(AVERAGEIFS(נתונים[שקל לק"מ],נתונים[תאריך],G64,נתונים[פעילות],$J$8),NA()) -> 
F65: 56 | G65: 2012-06-25 | H65: =SUMIFS(נתונים[ק"מ],נתונים[תאריך],G65,נתונים[פעילות],$H$8) -> 0 | I65: =IFERROR(AVERAGEIFS(נתונים[ק"מ לליטר],נתונים[תאריך],G65,נתונים[פעילות],$I$8),NA()) ->  | J65: =IFERROR(AVERAGEIFS(נתונים[שקל לק"מ],נתונים[תאריך],G65,נתונים[פעילות],$J$8),NA()) -> 
F66: 57 | G66: 2012-06-26 | H66: =SUMIFS(נתונים[ק"מ],נתונים[תאריך],G66,נתונים[פעילות],$H$8) -> 0 | I66: =IFERROR(AVERAGEIFS(נתונים[ק"מ לליטר],נתונים[תאריך],G66,נתונים[פעילות],$I$8),NA()) ->  | J66: =IFERROR(AVERAGEIFS(נתונים[שקל לק"מ],נתונים[תאריך],G66,נתונים[פעילות],$J$8),NA()) -> 
F67: 58 | G67: 2012-06-27 | H67: =SUMIFS(נתונים[ק"מ],נתונים[תאריך],G67,נתונים[פעילות],$H$8) -> 0 | I67: =IFERROR(AVERAGEIFS(נתונים[ק"מ לליטר],נתונים[תאריך],G67,נתונים[פעילות],$I$8),NA()) ->  | J67: =IFERROR(AVERAGEIFS(נתונים[שקל לק"מ],נתונים[תאריך],G67,נתונים[פעילות],$J$8),NA()) -> 
F68: 59 | G68: 2012-06-28 | H68: =SUMIFS(נתונים[ק"מ],נתונים[תאריך],G68,נתונים[פעילות],$H$8) -> 0 | I68: =IFERROR(AVERAGEIFS(נתונים[ק"מ לליטר],נתונים[תאריך],G68,נתונים[פעילות],$I$8),NA()) ->  | J68: =IFERROR(AVERAGEIFS(נתונים[שקל לק"מ],נתונים[תאריך],G68,נתונים[פעילות],$J$8),NA()) -> 
F69: 60 | G69: 2012-06-29 | H69: =SUMIFS(נתונים[ק"מ],נתונים[תאריך],G69,נתונים[פעילות],$H$8) -> 0 | I69: =IFERROR(AVERAGEIFS(נתונים[ק"מ לליטר],נתונים[תאריך],G69,נתונים[פעילות],$I$8),NA()) ->  | J69: =IFERROR(AVERAGEIFS(נתונים[שקל לק"מ],נתונים[תאריך],G69,נתונים[פעילות],$J$8),NA()) -> 
